[Event "Early-Titled-Tuesday-Blitz-May-28-2024"]
[Site "Chess.com"]
[Date "2024.05.28"]
[Round "5"]
[White "tusplingher"]
[Black "GambitGiesbergen"]
[Result "0-1"]
[WhiteElo "2574"]
[BlackElo "2358"]
[TimeControl "180+1"]
[EndTime "8:56:29 PDT"]
[Termination "GambitGiesbergen won by checkmate"]

1. e4 {[%clk 0:03:00.9]} 1... c5 {[%clk 0:02:58.9]} 2. Nf3 {[%clk 0:02:57.1]}
2... d6 {[%clk 0:02:59.4]} 3. d4 {[%clk 0:02:55.1]} 3... cxd4 {[%clk 0:03:00.3]}
4. Nxd4 {[%clk 0:02:54.6]} 4... Nf6 {[%clk 0:03:01]} 5. Bd3 {[%clk 0:02:54.8]}
5... Nc6 {[%clk 0:02:55.7]} 6. Be3 {[%clk 0:02:53.3]} 6... e5 {[%clk 0:02:52.5]}
7. Nxc6 {[%clk 0:02:51.7]} 7... bxc6 {[%clk 0:02:52.6]} 8. c4 {[%clk 0:02:52.3]}
8... Ng4 {[%clk 0:02:40.1]} 9. Bd2 {[%clk 0:02:50.4]} 9... Qb6 {[%clk
0:02:28.7]} 10. O-O {[%clk 0:02:48.8]} 10... Qxb2 {[%clk 0:02:27.9]} 11. Nc3
{[%clk 0:02:48.8]} 11... Qb6 {[%clk 0:02:21.7]} 12. Rb1 {[%clk 0:02:48.3]} 12...
Qd8 {[%clk 0:02:19.6]} 13. h3 {[%clk 0:02:43.8]} 13... Nf6 {[%clk 0:02:18.4]}
14. f4 {[%clk 0:02:44.2]} 14... Be7 {[%clk 0:02:16]} 15. Be3 {[%clk 0:02:39.8]}
15... exf4 {[%clk 0:02:11.5]} 16. Bxf4 {[%clk 0:02:39.3]} 16... O-O {[%clk
0:02:11.8]} 17. Qe2 {[%clk 0:02:36.3]} 17... Nd7 {[%clk 0:02:10.9]} 18. Rbd1
{[%clk 0:02:31.9]} 18... Ne5 {[%clk 0:02:06.1]} 19. Bc2 {[%clk 0:02:28.6]} 19...
Qa5 {[%clk 0:02:00.9]} 20. Qd2 {[%clk 0:02:23.5]} 20... Nxc4 {[%clk 0:01:44.9]}
21. Qe1 {[%clk 0:02:14.8]} 21... Qc5+ {[%clk 0:01:34.6]} 22. Kh1 {[%clk
0:02:12.9]} 22... Ne5 {[%clk 0:01:34.1]} 23. Bb3 {[%clk 0:02:08.2]} 23... Bf6
{[%clk 0:01:27.3]} 24. Na4 {[%clk 0:02:05.4]} 24... Qb5 {[%clk 0:01:13]} 25.
Rxd6 {[%clk 0:01:58.5]} 25... Ba6 {[%clk 0:01:06.2]} 26. Rg1 {[%clk 0:01:56.3]}
26... Rad8 {[%clk 0:01:02.3]} 27. Rxf6 {[%clk 0:01:33.7]} 27... gxf6 {[%clk
0:00:56.2]} 28. Qg3+ {[%clk 0:01:31.1]} 28... Kh8 {[%clk 0:00:56]} 29. Qh4
{[%clk 0:01:25.4]} 29... Rd6 {[%clk 0:00:31.4]} 30. Be3 {[%clk 0:00:51.9]} 30...
Rg8 {[%clk 0:00:27.7]} 31. Bc5 {[%clk 0:00:49.8]} 31... Nf3 {[%clk 0:00:13.8]}
32. gxf3 {[%clk 0:00:41.1]} 32... Rxg1+ {[%clk 0:00:13.4]} 33. Bxg1 {[%clk
0:00:42]} 33... Qf1 {[%clk 0:00:09.7]} 34. Qg3 {[%clk 0:00:40.7]} 34... Be2
{[%clk 0:00:06.9]} 35. Qf2 {[%clk 0:00:29]} 35... Bxf3+ {[%clk 0:00:05.6]} 36.
Kh2 {[%clk 0:00:28.7]} 36... Qd3 {[%clk 0:00:02.1]} 37. Nc5 {[%clk 0:00:26.4]}
37... Qc3 {[%clk 0:00:01.4]} 38. Na4 {[%clk 0:00:17.2]} 38... Qe5+ {[%clk
0:00:01.6]} 39. Qg3 {[%clk 0:00:16.4]} 39... Rd2+ {[%clk 0:00:01.4]} 40. Bf2
{[%clk 0:00:16.7]} 40... Rxf2+ {[%clk 0:00:01.7]} 41. Kg1 {[%clk 0:00:17]} 41...
Qxg3# {[%clk 0:00:02.4]} 0-1

[Event "Early-Titled-Tuesday-Blitz-May-28-2024"]
[Site "Chess.com"]
[Date "2024.05.28"]
[Round "5"]
[White "Nekoo04"]
[Black "Willi_Skibbe"]
[Result "1-0"]
[WhiteElo "2426"]
[BlackElo "2267"]
[TimeControl "180+1"]
[EndTime "8:56:29 PDT"]
[Termination "Nekoo04 won by checkmate"]

1. d4 {[%clk 0:02:59.9]} 1... d5 {[%clk 0:02:56.7]} 2. c4 {[%clk 0:02:58.3]}
2... c6 {[%clk 0:02:56.5]} 3. Nf3 {[%clk 0:02:58.2]} 3... Nf6 {[%clk 0:02:55.6]}
4. Qc2 {[%clk 0:02:52.4]} 4... a6 {[%clk 0:02:54.1]} 5. Bg5 {[%clk 0:02:38.9]}
5... Ne4 {[%clk 0:02:33]} 6. Nbd2 {[%clk 0:02:33.7]} 6... Nxg5 {[%clk
0:02:25.4]} 7. Nxg5 {[%clk 0:02:34.6]} 7... e5 {[%clk 0:02:25]} 8. h4 {[%clk
0:01:36]} 8... e4 {[%clk 0:02:19.4]} 9. g3 {[%clk 0:01:11.1]} 9... h6 {[%clk
0:02:14.8]} 10. Nh3 {[%clk 0:01:09.4]} 10... Be7 {[%clk 0:02:12.5]} 11. Nf4
{[%clk 0:01:06]} 11... O-O {[%clk 0:02:08.3]} 12. e3 {[%clk 0:00:59.3]} 12...
Be6 {[%clk 0:01:44.5]} 13. O-O-O {[%clk 0:00:53.6]} 13... Nd7 {[%clk 0:01:40.6]}
14. Nxe6 {[%clk 0:00:44.4]} 14... fxe6 {[%clk 0:01:38.5]} 15. Bh3 {[%clk
0:00:45.3]} 15... Rf6 {[%clk 0:01:33.3]} 16. Rhf1 {[%clk 0:00:34.3]} 16... b5
{[%clk 0:01:31.2]} 17. c5 {[%clk 0:00:20.9]} 17... Nf8 {[%clk 0:01:22.6]} 18. f4
{[%clk 0:00:19.2]} 18... a5 {[%clk 0:00:26.2]} 19. g4 {[%clk 0:00:14.6]} 19...
g5 {[%clk 0:00:21.7]} 20. hxg5 {[%clk 0:00:09]} 20... hxg5 {[%clk 0:00:22.6]}
21. Bg2 {[%clk 0:00:08]} 21... Qc7 {[%clk 0:00:20.6]} 22. Nxe4 {[%clk
0:00:07.8]} 22... dxe4 {[%clk 0:00:18.1]} 23. Qxe4 {[%clk 0:00:06.8]} 23... gxf4
{[%clk 0:00:17.2]} 24. g5 {[%clk 0:00:05.2]} 24... Rf5 {[%clk 0:00:16.1]} 25.
exf4 {[%clk 0:00:05.4]} 25... Rd8 {[%clk 0:00:15.2]} 26. Bh3 {[%clk 0:00:05.7]}
26... Rdd5 {[%clk 0:00:13.6]} 27. Bxf5 {[%clk 0:00:05.7]} 27... exf5 {[%clk
0:00:14.5]} 28. Qe3 {[%clk 0:00:04.5]} 28... Qd7 {[%clk 0:00:14.9]} 29. Rh1
{[%clk 0:00:04.5]} 29... Ng6 {[%clk 0:00:14.8]} 30. Rh6 {[%clk 0:00:04.9]} 30...
Kg7 {[%clk 0:00:14.6]} 31. Rdh1 {[%clk 0:00:05.3]} 31... Rxd4 {[%clk 0:00:13.2]}
32. Rh7+ {[%clk 0:00:04.4]} 32... Kf8 {[%clk 0:00:13.8]} 33. R1h6 {[%clk
0:00:04.6]} 33... Rd1+ {[%clk 0:00:12.9]} 34. Kc2 {[%clk 0:00:04.9]} 34... Qd5
{[%clk 0:00:12.4]} 35. Rxg6 {[%clk 0:00:04]} 35... Rf1 {[%clk 0:00:08.4]} 36.
Qxe7# {[%clk 0:00:03.5]} 1-0

[Event "Early-Titled-Tuesday-Blitz-May-28-2024"]
[Site "Chess.com"]
[Date "2024.05.28"]
[Round "5"]
[White "HamedWafa4"]
[Black "bazar-wokzal"]
[Result "1-0"]
[WhiteElo "2776"]
[BlackElo "2588"]
[TimeControl "180+1"]
[EndTime "8:56:30 PDT"]
[Termination "HamedWafa4 won by resignation"]

1. e4 {[%clk 0:03:00.9]} 1... Nc6 {[%clk 0:02:59.2]} 2. Nc3 {[%clk 0:02:53.3]}
2... Nf6 {[%clk 0:02:59]} 3. d4 {[%clk 0:02:51.9]} 3... d5 {[%clk 0:02:58.8]} 4.
e5 {[%clk 0:02:48.3]} 4... Nd7 {[%clk 0:02:59]} 5. Nxd5 {[%clk 0:02:41]} 5...
Ndb8 {[%clk 0:02:58.9]} 6. Nc3 {[%clk 0:02:29.1]} 6... Qxd4 {[%clk 0:02:58.6]}
7. Bd3 {[%clk 0:02:27.5]} 7... Qxe5+ {[%clk 0:02:52.3]} 8. Be3 {[%clk
0:02:26.6]} 8... e6 {[%clk 0:02:33.4]} 9. Nf3 {[%clk 0:02:18.1]} 9... Qh5 {[%clk
0:02:32.4]} 10. Nb5 {[%clk 0:01:51.5]} 10... Na6 {[%clk 0:02:31.7]} 11. O-O
{[%clk 0:01:50.8]} 11... Bc5 {[%clk 0:02:30.4]} 12. Ng5 {[%clk 0:01:41.3]} 12...
Qxd1 {[%clk 0:02:28.4]} 13. Raxd1 {[%clk 0:01:42.2]} 13... Bxe3 {[%clk 0:02:26]}
14. fxe3 {[%clk 0:01:42.4]} 14... Ne5 {[%clk 0:02:26.1]} 15. Be4 {[%clk
0:01:35.1]} 15... h6 {[%clk 0:02:21.6]} 16. Nxf7 {[%clk 0:01:34.8]} 16... Nxf7
{[%clk 0:02:18.7]} 17. Bg6 {[%clk 0:01:35.5]} 17... Rf8 {[%clk 0:02:18]} 18.
Rxf7 {[%clk 0:01:35.6]} 18... Rxf7 {[%clk 0:02:17.6]} 19. Rf1 {[%clk 0:01:36.5]}
19... Bd7 {[%clk 0:02:14.6]} 20. a4 {[%clk 0:01:05.8]} 20... Bxb5 {[%clk
0:02:02.8]} 21. axb5 {[%clk 0:01:04.6]} 21... Nc5 {[%clk 0:01:59.5]} 22. Rxf7
{[%clk 0:01:04.6]} 22... O-O-O {[%clk 0:01:59]} 23. Rxg7 {[%clk 0:01:04.1]}
23... Na4 {[%clk 0:01:50.2]} 24. b3 {[%clk 0:00:55.4]} 24... Nc3 {[%clk
0:01:49.9]} 25. Kf2 {[%clk 0:00:49.8]} 25... Rd2+ {[%clk 0:01:33.5]} 26. Kf3
{[%clk 0:00:49.9]} 26... Nxb5 {[%clk 0:01:31]} 27. h4 {[%clk 0:00:46.5]} 27...
Na3 {[%clk 0:01:20.2]} 28. Rh7 {[%clk 0:00:35.1]} 28... Nxc2 {[%clk 0:01:13.9]}
29. Bxc2 {[%clk 0:00:34.9]} 29... Rxc2 {[%clk 0:01:13.7]} 30. Rxh6 {[%clk
0:00:35.8]} 30... Kd7 {[%clk 0:01:14.1]} 31. g4 {[%clk 0:00:36]} 31... Rc3
{[%clk 0:01:06.2]} 32. g5 {[%clk 0:00:35.9]} 32... Rxb3 {[%clk 0:01:04.2]} 33.
Rh7+ {[%clk 0:00:36.2]} 33... Kd6 {[%clk 0:00:57.8]} 34. h5 {[%clk 0:00:32.4]}
34... Rb1 {[%clk 0:00:44.9]} 35. h6 {[%clk 0:00:23]} 35... a5 {[%clk 0:00:23.6]}
36. Rh8 {[%clk 0:00:20.8]} 36... a4 {[%clk 0:00:15.5]} 37. h7 {[%clk 0:00:20.6]}
37... a3 {[%clk 0:00:09.1]} 38. Rd8+ {[%clk 0:00:20.1]} 38... Ke7 {[%clk
0:00:05.8]} 39. h8=Q {[%clk 0:00:21]} 1-0

[Event "Early-Titled-Tuesday-Blitz-May-28-2024"]
[Site "Chess.com"]
[Date "2024.05.28"]
[Round "5"]
[White "Jeppesen08"]
[Black "SmirnovAlexandrA"]
[Result "0-1"]
[WhiteElo "2476"]
[BlackElo "2642"]
[TimeControl "180+1"]
[EndTime "8:56:32 PDT"]
[Termination "SmirnovAlexandrA won by resignation"]

1. e4 {[%clk 0:02:59.8]} 1... d5 {[%clk 0:02:55.5]} 2. exd5 {[%clk 0:02:58.6]}
2... Qxd5 {[%clk 0:02:56.4]} 3. Nc3 {[%clk 0:02:57.8]} 3... Qd6 {[%clk
0:02:56.6]} 4. Nf3 {[%clk 0:02:57.7]} 4... Nf6 {[%clk 0:02:56.9]} 5. d4 {[%clk
0:02:56.6]} 5... a6 {[%clk 0:02:57.1]} 6. Be2 {[%clk 0:02:55]} 6... b5 {[%clk
0:02:56.7]} 7. a3 {[%clk 0:02:51.8]} 7... Bb7 {[%clk 0:02:56.8]} 8. O-O {[%clk
0:02:51.6]} 8... Nbd7 {[%clk 0:02:57]} 9. h3 {[%clk 0:02:44.5]} 9... e6 {[%clk
0:02:56.9]} 10. Be3 {[%clk 0:02:43.9]} 10... c5 {[%clk 0:02:53.6]} 11. dxc5
{[%clk 0:02:38.6]} 11... Nxc5 {[%clk 0:02:54.5]} 12. Qxd6 {[%clk 0:02:24.6]}
12... Bxd6 {[%clk 0:02:55.4]} 13. Rad1 {[%clk 0:02:20.4]} 13... Be7 {[%clk
0:02:53.3]} 14. Ne5 {[%clk 0:02:06]} 14... Rc8 {[%clk 0:02:48.2]} 15. Bf3 {[%clk
0:01:40]} 15... Bxf3 {[%clk 0:02:46.9]} 16. Nxf3 {[%clk 0:01:40.9]} 16... Nfe4
{[%clk 0:02:39.2]} 17. Nxe4 {[%clk 0:01:35.5]} 17... Nxe4 {[%clk 0:02:40.1]} 18.
c3 {[%clk 0:01:35.3]} 18... Bf6 {[%clk 0:02:28.6]} 19. Rfe1 {[%clk 0:01:30.2]}
19... Ke7 {[%clk 0:02:21.5]} 20. Bd4 {[%clk 0:01:20.7]} 20... Bxd4 {[%clk
0:02:15.1]} 21. Nxd4 {[%clk 0:01:21.6]} 21... Nc5 {[%clk 0:02:11.1]} 22. f4
{[%clk 0:01:01.9]} 22... Rhd8 {[%clk 0:02:05.9]} 23. f5 {[%clk 0:00:56.4]} 23...
g6 {[%clk 0:01:51.4]} 24. fxe6 {[%clk 0:00:55.4]} 24... Nxe6 {[%clk 0:01:46.2]}
25. Nxe6 {[%clk 0:00:53.5]} 25... Rxd1 {[%clk 0:01:45.7]} 26. Rxd1 {[%clk
0:00:53.9]} 26... Kxe6 {[%clk 0:01:46]} 27. Kf2 {[%clk 0:00:51.9]} 27... a5
{[%clk 0:01:41.2]} 28. Rd4 {[%clk 0:00:48.7]} 28... f5 {[%clk 0:01:37.8]} 29.
Kf3 {[%clk 0:00:48.7]} 29... g5 {[%clk 0:01:32.6]} 30. h4 {[%clk 0:00:49]} 30...
h6 {[%clk 0:01:32.3]} 31. g3 {[%clk 0:00:44.4]} 31... Rc4 {[%clk 0:01:27.3]} 32.
Ke3 {[%clk 0:00:25.3]} 32... Rxd4 {[%clk 0:00:49.4]} 33. Kxd4 {[%clk 0:00:24.5]}
33... f4 {[%clk 0:00:35.8]} 34. gxf4 {[%clk 0:00:15.3]} 34... gxh4 {[%clk
0:00:35.8]} 35. Ke4 {[%clk 0:00:14.8]} 35... a4 {[%clk 0:00:24.9]} 36. f5+
{[%clk 0:00:11.3]} 36... Kf6 {[%clk 0:00:25.2]} 37. Kf4 {[%clk 0:00:11.2]} 37...
h3 {[%clk 0:00:25.6]} 38. Kg3 {[%clk 0:00:11.5]} 38... Kxf5 {[%clk 0:00:26.5]}
39. Kxh3 {[%clk 0:00:12.1]} 39... Ke4 {[%clk 0:00:26.5]} 40. Kh4 {[%clk
0:00:08.4]} 40... Kd3 {[%clk 0:00:26.5]} 41. Kh5 {[%clk 0:00:08.9]} 41... Kc2
{[%clk 0:00:26.6]} 42. Kxh6 {[%clk 0:00:09.8]} 42... Kxb2 {[%clk 0:00:26.7]} 43.
Kg5 {[%clk 0:00:10.7]} 43... Kxc3 {[%clk 0:00:26.9]} 44. Kf4 {[%clk 0:00:11.4]}
44... Kb3 {[%clk 0:00:27.3]} 45. Ke4 {[%clk 0:00:12.3]} 45... Kxa3 {[%clk
0:00:28.2]} 46. Kd3 {[%clk 0:00:13.2]} 46... Kb2 {[%clk 0:00:28.5]} 47. Kd2
{[%clk 0:00:13.1]} 47... a3 {[%clk 0:00:28.7]} 48. Kd3 {[%clk 0:00:14]} 48... a2
{[%clk 0:00:29.6]} 0-1

[Event "Early-Titled-Tuesday-Blitz-May-28-2024"]
[Site "Chess.com"]
[Date "2024.05.28"]
[Round "5"]
[White "Chopper1905"]
[Black "youngKID"]
[Result "0-1"]
[WhiteElo "2958"]
[BlackElo "2883"]
[TimeControl "180+1"]
[EndTime "8:56:33 PDT"]
[Termination "youngKID won by resignation"]

1. d4 {[%clk 0:03:00.9]} 1... Nf6 {[%clk 0:02:59.9]} 2. c4 {[%clk 0:03:01]} 2...
g6 {[%clk 0:02:59.9]} 3. Nc3 {[%clk 0:03:00.9]} 3... Bg7 {[%clk 0:03:00.3]} 4.
e4 {[%clk 0:03:00.9]} 4... d6 {[%clk 0:03:01]} 5. Nf3 {[%clk 0:03:00.9]} 5...
O-O {[%clk 0:03:01.1]} 6. Be2 {[%clk 0:03:01.3]} 6... e5 {[%clk 0:02:59.7]} 7.
O-O {[%clk 0:03:01.3]} 7... Na6 {[%clk 0:02:58.6]} 8. Be3 {[%clk 0:03:00.3]}
8... Qe7 {[%clk 0:02:58.3]} 9. Bg5 {[%clk 0:02:57.1]} 9... Bg4 {[%clk
0:02:38.1]} 10. dxe5 {[%clk 0:02:36.2]} 10... dxe5 {[%clk 0:02:35.8]} 11. Nd5
{[%clk 0:02:35.9]} 11... Qe6 {[%clk 0:02:35.6]} 12. Bxf6 {[%clk 0:02:08.4]}
12... Bxf6 {[%clk 0:02:33.9]} 13. Nd4 {[%clk 0:02:01.6]} 13... exd4 {[%clk
0:02:13]} 14. Bxg4 {[%clk 0:02:01.5]} 14... Qd6 {[%clk 0:02:11.9]} 15. b4 {[%clk
0:01:18.8]} 15... Bg7 {[%clk 0:02:04.9]} 16. c5 {[%clk 0:01:18.6]} 16... Qe5
{[%clk 0:01:39.8]} 17. f4 {[%clk 0:01:01]} 17... Qe8 {[%clk 0:01:10.1]} 18. Be2
{[%clk 0:00:56.3]} 18... Rd8 {[%clk 0:00:40.6]} 19. Bxa6 {[%clk 0:00:54.4]}
19... bxa6 {[%clk 0:00:40.9]} 20. Qd3 {[%clk 0:00:54.4]} 20... a5 {[%clk
0:00:27.5]} 21. b5 {[%clk 0:00:46.9]} 21... f5 {[%clk 0:00:27.6]} 22. Rae1
{[%clk 0:00:36.8]} 22... Qf7 {[%clk 0:00:24.5]} 23. Qb3 {[%clk 0:00:27.2]} 23...
Kh8 {[%clk 0:00:16.9]} 24. b6 {[%clk 0:00:09.8]} 24... cxb6 {[%clk 0:00:16.7]}
25. cxb6 {[%clk 0:00:10.2]} 25... fxe4 {[%clk 0:00:09.9]} 26. Nc7 {[%clk
0:00:10.4]} 26... Qxb3 {[%clk 0:00:08.1]} 27. axb3 {[%clk 0:00:11.3]} 27... e3
{[%clk 0:00:08.8]} 28. Ne6 {[%clk 0:00:10.4]} 28... axb6 {[%clk 0:00:08.7]} 29.
Nxf8 {[%clk 0:00:03]} 29... Bxf8 {[%clk 0:00:08.9]} 30. Rf3 {[%clk 0:00:03.5]}
30... Bc5 {[%clk 0:00:07.7]} 31. Rd1 {[%clk 0:00:01]} 31... e2 {[%clk
0:00:06.8]} 32. Re1 {[%clk 0:00:01]} 32... d3+ {[%clk 0:00:07.2]} 0-1

[Event "Early-Titled-Tuesday-Blitz-May-28-2024"]
[Site "Chess.com"]
[Date "2024.05.28"]
[Round "5"]
[White "Likvidator228"]
[Black "NowInChess"]
[Result "1-0"]
[WhiteElo "2532"]
[BlackElo "2241"]
[TimeControl "180+1"]
[EndTime "8:56:34 PDT"]
[Termination "Likvidator228 won on time"]

1. d4 {[%clk 0:02:56.1]} 1... Nf6 {[%clk 0:02:59.7]} 2. c4 {[%clk 0:02:56.3]}
2... c5 {[%clk 0:02:59.3]} 3. d5 {[%clk 0:02:56.2]} 3... b5 {[%clk 0:02:59.6]}
4. cxb5 {[%clk 0:02:57.1]} 4... a6 {[%clk 0:02:59.9]} 5. bxa6 {[%clk 0:02:57.5]}
5... g6 {[%clk 0:02:59.1]} 6. Nc3 {[%clk 0:02:57.9]} 6... Bg7 {[%clk 0:02:59.3]}
7. e4 {[%clk 0:02:58.5]} 7... O-O {[%clk 0:02:59.6]} 8. Nf3 {[%clk 0:02:58.5]}
8... Qa5 {[%clk 0:02:56.6]} 9. Bd2 {[%clk 0:02:56.6]} 9... Bxa6 {[%clk
0:02:56.5]} 10. Bxa6 {[%clk 0:02:50.9]} 10... Qxa6 {[%clk 0:02:57.4]} 11. Qe2
{[%clk 0:02:50]} 11... e6 {[%clk 0:02:52.6]} 12. dxe6 {[%clk 0:02:47.8]} 12...
fxe6 {[%clk 0:02:51.6]} 13. Qxa6 {[%clk 0:02:47.7]} 13... Nxa6 {[%clk
0:02:49.9]} 14. O-O {[%clk 0:02:45.6]} 14... d5 {[%clk 0:02:48.2]} 15. exd5
{[%clk 0:02:42.4]} 15... exd5 {[%clk 0:02:49.1]} 16. Rfd1 {[%clk 0:02:17.6]}
16... d4 {[%clk 0:02:47.6]} 17. Nb5 {[%clk 0:02:15.9]} 17... Rfb8 {[%clk
0:02:37.9]} 18. a4 {[%clk 0:02:15.8]} 18... Ne4 {[%clk 0:02:32.8]} 19. Bf4
{[%clk 0:02:13.7]} 19... Rf8 {[%clk 0:02:26.2]} 20. Bg3 {[%clk 0:01:46.7]} 20...
Nxg3 {[%clk 0:02:06.5]} 21. hxg3 {[%clk 0:01:46.9]} 21... Nb4 {[%clk 0:02:02.4]}
22. b3 {[%clk 0:01:44.6]} 22... Rab8 {[%clk 0:01:33]} 23. Rac1 {[%clk
0:01:42.5]} 23... Rfc8 {[%clk 0:01:23.7]} 24. Ne1 {[%clk 0:01:33.6]} 24... Bh6
{[%clk 0:01:16.8]} 25. Rc4 {[%clk 0:01:30.1]} 25... Nd5 {[%clk 0:01:06.8]} 26.
Nd3 {[%clk 0:01:27.5]} 26... Nb6 {[%clk 0:00:57.2]} 27. Rxc5 {[%clk 0:01:26.6]}
27... Rxc5 {[%clk 0:00:51.2]} 28. Nxc5 {[%clk 0:01:26.7]} 28... Rc8 {[%clk
0:00:51.7]} 29. Nd3 {[%clk 0:01:21.3]} 29... Rc2 {[%clk 0:00:51.6]} 30. a5
{[%clk 0:01:19.9]} 30... Nd5 {[%clk 0:00:47.1]} 31. Nxd4 {[%clk 0:01:20.4]}
31... Ra2 {[%clk 0:00:46]} 32. b4 {[%clk 0:01:05.9]} 32... Bf8 {[%clk
0:00:40.4]} 33. Nc6 {[%clk 0:00:57.8]} 33... Nxb4 {[%clk 0:00:34.7]} 34. Ndxb4
{[%clk 0:00:56.1]} 34... Bxb4 {[%clk 0:00:34.1]} 35. Nxb4 {[%clk 0:00:56.9]}
35... Rxa5 {[%clk 0:00:34.2]} 36. Nd5 {[%clk 0:00:55.8]} 36... Ra2 {[%clk
0:00:33.1]} 37. g4 {[%clk 0:00:52.2]} 37... Kf7 {[%clk 0:00:31.3]} 38. Re1
{[%clk 0:00:49.5]} 38... h6 {[%clk 0:00:28.4]} 39. Re7+ {[%clk 0:00:49.1]} 39...
Kg8 {[%clk 0:00:27]} 40. Nf6+ {[%clk 0:00:48.6]} 40... Kf8 {[%clk 0:00:25]} 41.
Rh7 {[%clk 0:00:48]} 41... Ra6 {[%clk 0:00:19.9]} 42. Ne4 {[%clk 0:00:46.8]}
42... g5 {[%clk 0:00:18.3]} 43. f3 {[%clk 0:00:46.2]} 43... Ra1+ {[%clk
0:00:17.4]} 44. Kh2 {[%clk 0:00:46.1]} 44... Ra6 {[%clk 0:00:18.3]} 45. Ng3
{[%clk 0:00:45.8]} 45... Kg8 {[%clk 0:00:18.1]} 46. Rd7 {[%clk 0:00:45.6]} 46...
Ra1 {[%clk 0:00:17.6]} 47. Nf5 {[%clk 0:00:45]} 47... Ra6 {[%clk 0:00:17]} 48.
Rd6 {[%clk 0:00:45.3]} 48... Ra1 {[%clk 0:00:04.8]} 49. Rxh6 {[%clk 0:00:44.4]}
49... Ra5 {[%clk 0:00:03.1]} 50. Rg6+ {[%clk 0:00:44.3]} 50... Kf7 {[%clk
0:00:01.9]} 51. Rxg5 {[%clk 0:00:44.6]} 51... Kf6 {[%clk 0:00:02.1]} 52. Rh5
{[%clk 0:00:44.6]} 52... Kg6 {[%clk 0:00:01.4]} 53. Ne7+ {[%clk 0:00:42.8]} 1-0

[Event "Early-Titled-Tuesday-Blitz-May-28-2024"]
[Site "Chess.com"]
[Date "2024.05.28"]
[Round "5"]
[White "Thunderbolt135"]
[Black "Pintacara"]
[Result "1-0"]
[WhiteElo "2876"]
[BlackElo "2646"]
[TimeControl "180+1"]
[EndTime "8:56:35 PDT"]
[Termination "Thunderbolt135 won by resignation"]

1. d4 {[%clk 0:03:00.9]} 1... d5 {[%clk 0:02:58.4]} 2. Nf3 {[%clk 0:03:01.2]}
2... Nf6 {[%clk 0:02:57.7]} 3. c4 {[%clk 0:03:01.6]} 3... e6 {[%clk 0:02:58.2]}
4. e3 {[%clk 0:03:02.1]} 4... Be7 {[%clk 0:02:58.3]} 5. Bd3 {[%clk 0:03:01.3]}
5... O-O {[%clk 0:02:58.9]} 6. O-O {[%clk 0:03:01.4]} 6... b6 {[%clk 0:02:58.9]}
7. cxd5 {[%clk 0:03:01.6]} 7... exd5 {[%clk 0:02:58.8]} 8. b3 {[%clk 0:03:01.8]}
8... Bb7 {[%clk 0:02:59.3]} 9. Bb2 {[%clk 0:03:02.4]} 9... Nbd7 {[%clk
0:02:58.7]} 10. Nc3 {[%clk 0:03:03.1]} 10... c5 {[%clk 0:02:58.3]} 11. Ne2
{[%clk 0:03:03.8]} 11... Rc8 {[%clk 0:02:57.2]} 12. Ng3 {[%clk 0:03:04.2]} 12...
c4 {[%clk 0:02:56.1]} 13. Bc2 {[%clk 0:03:02.8]} 13... c3 {[%clk 0:02:55.4]} 14.
Bc1 {[%clk 0:03:02.9]} 14... Ne4 {[%clk 0:02:53.2]} 15. Nf5 {[%clk 0:02:57.8]}
15... Bf6 {[%clk 0:02:47.5]} 16. Ba3 {[%clk 0:02:56.6]} 16... Re8 {[%clk
0:02:46.3]} 17. Nd6 {[%clk 0:02:57.1]} 17... Nxd6 {[%clk 0:02:45.9]} 18. Bxd6
{[%clk 0:02:58]} 18... g6 {[%clk 0:02:43.4]} 19. Bg3 {[%clk 0:02:54.4]} 19... b5
{[%clk 0:02:35.5]} 20. b4 {[%clk 0:02:33.7]} 20... a5 {[%clk 0:02:17.5]} 21. a3
{[%clk 0:02:34.1]} 21... a4 {[%clk 0:02:15.2]} 22. Bd3 {[%clk 0:02:32.3]} 22...
Qb6 {[%clk 0:02:13.8]} 23. Rc1 {[%clk 0:02:32.7]} 23... Bg7 {[%clk 0:01:57.1]}
24. Qe2 {[%clk 0:02:33]} 24... Ba6 {[%clk 0:01:52.9]} 25. Rc2 {[%clk 0:02:33.6]}
25... Rc6 {[%clk 0:01:50.9]} 26. Rfc1 {[%clk 0:02:33.8]} 26... Rec8 {[%clk
0:01:51.6]} 27. Qe1 {[%clk 0:02:34.3]} 27... Re8 {[%clk 0:01:25.2]} 28. Rxc3
{[%clk 0:02:17.1]} 28... Rce6 {[%clk 0:01:23.5]} 29. Qf1 {[%clk 0:02:05.7]}
29... Bf8 {[%clk 0:01:11.2]} 30. Rc7 {[%clk 0:01:53.4]} 30... Nb8 {[%clk
0:00:49.1]} 31. R1c2 {[%clk 0:01:25.1]} 31... Nc6 {[%clk 0:00:42.9]} 32. Qc1
{[%clk 0:01:13.8]} 32... Bb7 {[%clk 0:00:42.2]} 33. Rd7 {[%clk 0:00:48]} 33...
Bc8 {[%clk 0:00:25.8]} 34. Rxd5 {[%clk 0:00:46.8]} 34... Ne7 {[%clk 0:00:15.6]}
35. Rdc5 {[%clk 0:00:41.8]} 35... Bb7 {[%clk 0:00:15.7]} 36. Ng5 {[%clk
0:00:37]} 36... Rf6 {[%clk 0:00:12.8]} 37. Bc7 {[%clk 0:00:31.9]} 37... Qa7
{[%clk 0:00:11.8]} 38. Be5 {[%clk 0:00:32.5]} 38... Rb6 {[%clk 0:00:11]} 39.
Bxb5 {[%clk 0:00:26.6]} 39... f6 {[%clk 0:00:10.9]} 40. Bxe8 {[%clk 0:00:23.4]}
40... fxe5 {[%clk 0:00:09.3]} 41. Bf7+ {[%clk 0:00:22.4]} 41... Kg7 {[%clk
0:00:09.4]} 42. Ba2 {[%clk 0:00:22.5]} 42... exd4 {[%clk 0:00:08.3]} 43. Ne6+
{[%clk 0:00:23.2]} 43... Kf6 {[%clk 0:00:07.2]} 44. Nxf8 {[%clk 0:00:22.4]} 1-0